bitfinex/quotes_ETHUSD_20250210
["timestamp","ask_amount","ask_price","bid_price","bid_amount"]
[1739209852338,7.464,2679.6,2679.1,0.55]
[1739209852523,6.73204,2679.5,2679.2,0.09699984]
[1739209852711,3.73218,2679.4,2679.2,0.09699984]
[1739209853637,3.73231,2679.3,2679.2,0.09699984]
[1739209853931,6.73231,2679.3,2679.2,0.09699984]
[1739209854301,3.7326,2679.1,2678.6,4.28327]
[1739209855037,3.73231,2679.3,2678.6,0.55]
[1739209855237,3.73218,2679.4,2679.0,0.55]
[1739209855650,3.73177,2679.7,2679.1,0.0075]
[1739209855850,0.7861,2680.0,2679.1,0.0075]
[1739209856008,3.73135,2680.0,2679.4,1.3159]
[1739209856203,3.73135,2680.0,2679.5,3.732]
[1739209856440,3.0,2679.9,2679.5,3.732]
[1739209856744,3.73116,2680.2,2679.6,0.55]
[1739209857041,6.04617028,2680.1,2679.6,0.55]
[1739209857241,3.73136,2680.0,2679.6,0.55]
[1739209857463,2.31488028,2680.1,2679.6,0.55]
[1739209857667,2.31488028,2680.1,2679.6,4.28187]
[1739209857962,6.04613028,2680.1,2679.6,4.28187]
[1739209858302,2.31488028,2680.1,2679.7,3.73174]
[1739209858944,2.31488028,2680.1,2679.6,4.28184]
[1739209859133,6.04608028,2680.1,2679.6,4.28184]
[1739209859336,2.31488028,2680.1,2679.6,4.28184]
[1739209859940,6.04615028,2680.1,2679.6,4.28184]
[1739209860144,3.73135,2680.0,2679.6,0.55]
[1739209860725,3.73178,2679.7,2679.4,0.7659]
[1739209860926,3.73155,2679.9,2679.4,0.7659]
[1739209861123,3.73176,2679.7,2679.5,0.55]
[1739209862133,3.73155,2679.9,2679.5,0.55]
[1739209862339,3.73167,2679.8,2679.5,0.55]
[1739209862537,3.73135,2680.0,2679.5,4.28202]
[1739209862765,5.31488028,2680.1,2679.5,0.55]
[1739209862952,3.73152,2679.9,2679.5,0.55]
[1739209863263,3.73149,2679.9,2679.5,0.55]
[1739209863555,3.73164,2679.8,2679.6,0.09591769]
[1739209866426,3.73176,2679.7,2679.6,0.09591769]
[1739209866632,7.49296,2679.7,2679.6,0.09591769]
[1739209866967,3.73284,2679.0,2678.8,0.8178]
[1739209867149,3.73254,2679.2,2678.8,0.8178]
[1739209867353,3.73254,2679.2,2679.0,0.55]
[1739209867555,3.0,2679.6,2679.0,4.28265]
[1739209867726,3.0,2679.6,2679.2,0.55]
[1739209868155,6.7319,2679.6,2679.3,0.08927611]
[1739209868558,6.7319,2679.6,2679.2,0.55]
[1739209868828,3.73217,2679.4,2679.3,0.08927611]
[1739209869032,3.73217,2679.4,2679.3,0.55]
[1739209869263,3.73217,2679.4,2679.3,0.63927611]
[1739209869860,3.73217,2679.4,2679.3,0.08927611]
[1739209870066,3.73271,2679.1,2678.8,0.8178]
[1739209870292,3.73271,2679.1,2678.9,0.08976597]
[1739209870871,3.0,2679.3,2679.0,0.55]
[1739209871194,0.7612,2679.7,2679.2,0.55]
[1739209871357,6.04614028,2680.1,2679.2,0.55]
[1739209871358,3.73191,2679.6,2679.2,0.55]
[1739209871695,3.73162,2679.8,2679.3,0.08927611]
[1739209871898,3.73162,2679.8,2679.5,0.55]
[1739209872394,3.73162,2679.8,2679.6,0.08890881]
[1739209872595,4.49263,2680.0,2679.6,0.08890881]
[1739209872596,6.73151,2679.9,2679.6,0.08890881]
[1739209872798,5.31488028,2680.1,2679.7,0.55]
[1739209872799,2.31488028,2680.1,2679.7,0.55]
[1739209872998,2.31488028,2680.1,2680.0,5.09914]
[1739209873296,2.31488028,2680.1,2680.0,1.45621921]
[1739209873495,6.04608028,2680.1,2680.0,0.63841921]
[1739209873703,6.04608028,2680.1,2680.0,0.08841921]
[1739209874097,3.73152,2679.9,2679.7,0.55]
[1739209874272,6.04613028,2680.1,2679.8,0.08866399]
[1739209874477,6.04613028,2680.1,2679.7,0.55]
[1739209874678,6.04613028,2680.1,2679.8,0.08866399]
[1739209874887,6.04613028,2680.1,2679.7,0.55]
[1739209875088,6.04613028,2680.1,2679.8,0.08862502]
[1739209875292,2.31488028,2680.1,2679.7,4.28173]
[1739209875606,2.31488028,2680.1,2679.8,0.08862502]
[1739209875909,2.31488028,2680.1,2679.7,0.55]
[1739209876202,2.31488028,2680.1,2679.8,0.08862502]
[1739209876583,2.31488028,2680.1,2679.7,0.55]
[1739209876777,2.31488028,2680.1,2679.9,0.08850262]
[1739209877007,2.31488028,2680.1,2680.0,0.08838023]
[1739209877212,2.31488028,2680.1,2680.0,0.55]
[1739209877595,2.31488028,2680.1,2680.0,0.63838023]
[1739209878313,6.04608028,2680.1,2680.0,0.08838023]
[1739209878481,4.511,2680.1,2680.0,0.08838023]
[1739209878681,3.7316,2679.9,2679.3,9.5502]
[1739209878882,3.73142,2680.0,2679.5,3.73194]
[1739209879081,3.73142,2680.0,2679.5,3.73203]
[1739209879410,3.73116,2680.2,2679.7,0.55]
[1739209879610,3.73116,2680.2,2680.0,0.55]
[1739209880775,3.7312,2680.1,2680.0,0.55]
[1739209882590,3.7312,2680.1,2679.4,7.24074275]
[1739209882591,3.73141,2680.0,2679.6,0.8002]
[1739209882778,3.73161,2679.9,2679.4,3.73208]
[1739209882982,7.46342,2679.8,2679.3,9.5502]
[1739209883191,3.73168,2679.8,2679.4,0.55]
[1739209883391,3.7318,2679.7,2679.4,0.55]
[1739209883916,3.73159,2679.9,2679.4,4.28205]
[1739209884611,3.73159,2679.9,2679.6,0.55]
[1739209884811,3.7798,2680.1,2679.6,0.55]
[1739209885011,3.73134,2680.0,2679.6,0.55]
[1739209885417,7.46281,2680.0,2679.6,0.55]
[1739209885726,3.73134,2680.0,2679.6,0.55]
[1739209886094,6.73128,2680.1,2679.6,0.55]
[1739209886303,3.73123,2680.1,2679.8,0.55]
[1739209886708,3.73148,2679.9,2679.5,0.5575]
[1739209886923,3.7317,2679.8,2679.5,0.5575]
[1739209887296,3.73162,2679.8,2679.5,0.5575]
[1739209887500,3.73162,2679.8,2679.5,0.55]
[1739209887702,3.73178,2679.7,2679.2,0.75474375]
[1739209887946,3.73178,2679.7,2679.2,3.73241]
[1739209888240,3.73178,2679.7,2679.3,0.55]
[1739209888999,3.73178,2679.7,2679.3,4.28227]
[1739209889200,3.73163,2679.8,2679.3,4.28227]
[1739209890034,3.73159,2679.9,2679.5,0.55]
[1739209890303,3.73141,2680.0,2679.5,4.28197]
[1739209890530,0.7798,2680.2,2679.5,0.55]
[1739209890845,3.73187,2679.7,2679.3,0.55]
[1739209891141,3.73149,2679.9,2679.5,0.55]
[1739209891348,7.51096,2680.2,2679.6,3.73177]
[1739209891538,3.73163,2679.8,2679.5,0.55]
[1739209891925,0.7798,2680.2,2679.2,0.5575]
[1739209892137,0.7439233,2680.9,2679.2,0.5575]
[1739209892138,0.7798,2680.9,2680.5,3.73052]
[1739209892340,3.72868,2682.0,2680.5,3.73052]
[1739209892341,3.72984,2681.1,2680.5,3.73052]
[1739209892728,3.0,2681.0,2680.5,3.73052]
[1739209893325,3.0,2681.0,2680.4,0.55]
[1739209893529,3.0,2681.0,2680.7,0.55]
[1739209893730,6.72995,2681.0,2680.4,4.28065]
[1739209893925,6.72995,2681.0,2680.8,0.08737224]
[1739209894257,0.7798,2681.2,2680.9,0.08724993]
[1739209894556,6.72998,2681.0,2680.5,0.55]
[1739209894760,3.73031,2680.8,2680.5,0.55]
[1739209894953,3.73081,2680.4,2680.0,0.8077]
[1739209895125,3.73069,2680.5,2680.0,0.8077]
[1739209895326,3.7798,2680.7,2680.1,0.55]
[1739209895532,3.73106,2680.2,2680.1,0.55]
[1739209896724,3.7312,2680.1,2679.7,0.8002]
[1739209897076,3.73124,2680.1,2679.7,0.8002]
[1739209897292,3.73124,2680.1,2679.8,0.55]
[1739209897561,3.73124,2680.1,2679.7,0.8002]
[1739209897730,3.73124,2680.1,2679.8,0.55]
[1739209900870,3.73138,2680.0,2679.8,0.55]
[1739209901031,3.73124,2680.1,2679.8,0.55]
[1739209901226,3.0,2680.2,2679.8,0.55]
[1739209901432,6.73108,2680.2,2679.8,0.55]
[1739209901735,3.7312,2680.1,2679.8,0.55]
[1739209901930,3.73073,2680.5,2679.9,3.73137]
[1739209902131,3.73059,2680.6,2680.2,0.55]
[1739209902447,7.46119,2680.6,2680.2,1.3502]
[1739209902642,0.7798,2681.0,2680.2,1.3502]
[1739209902831,3.73088,2680.4,2680.2,1.3502]
[1739209903462,3.73009,2680.9,2680.0,0.55]
[1739209903648,3.73088,2680.4,2680.0,0.55]
[1739209904165,0.7798,2680.5,2680.0,0.55]
[1739209904337,3.7312,2680.1,2679.6,9.5577]
[1739209904651,3.73101,2680.3,2679.7,0.5575]
[1739209904842,3.73108,2680.2,2679.7,4.28916]
[1739209905038,3.73108,2680.2,2679.8,3.73161]
[1739209905464,3.0,2680.3,2679.8,3.73161]
[1739209905768,6.73095,2680.3,2679.8,3.73152]
[1739209906182,3.73058,2680.6,2680.1,4.53848]
[1739209906466,3.73058,2680.6,2680.2,0.55]
[1739209907730,3.73058,2680.6,2679.9,3.73147]
[1739209907731,3.0,2680.5,2679.9,3.73147]
[1739209907930,3.73115,2680.2,2679.8,0.8073]
[1739209908153,3.73131,2680.1,2679.9,0.55]
[1739209908666,3.73114,2680.2,2680.1,0.55]
[1739209908870,3.73092,2680.4,2680.1,0.63800213]
[1739209909233,0.7838,2680.6,2680.3,3.73085]
[1739209909532,0.7838,2680.6,2680.4,0.08763506]
[1739209909533,3.73051,2680.6,2680.4,0.08763506]
[1739209909933,3.73064,2680.5,2680.4,0.55]
[1739209910269,3.73064,2680.5,2680.4,0.63763506]
[1739209910653,3.73064,2680.5,2680.4,0.08763506]
[1739209910857,3.73064,2680.5,2679.8,0.8073]
[1739209910858,3.73088,2680.4,2679.8,0.8073]
[1739209911065,3.73127,2680.1,2679.8,0.8073]
[1739209911368,3.73127,2680.1,2679.9,0.55]
[1739209912967,3.73169,2679.8,2679.5,0.8073]
[1739209913267,3.73184,2679.7,2679.2,4.53971]
[1739209913569,4.51493,2680.2,2679.2,4.53971]
[1739209913570,3.73141,2680.0,2679.5,0.55]
[1739209913731,0.7838,2680.2,2679.5,0.55]
[1739209913937,3.0,2680.1,2679.7,0.55]
[1739209914173,8.24609,2680.2,2679.7,1.3573]
[1739209914339,7.46229,2680.2,2679.7,1.3573]
[1739209914538,3.73113,2680.2,2679.7,1.3573]
[1739209914766,3.73144,2680.0,2679.7,1.3573]
[1739209914948,3.73148,2679.9,2679.7,1.3573]
[1739209915147,3.73144,2680.0,2679.7,1.3573]
[1739209915438,4.51446,2680.5,2679.8,3.73156]
[1739209915751,3.73036,2680.7,2680.3,0.55]
[1739209916498,3.73036,2680.7,2680.3,4.28092]
[1739209916971,3.72995,2681.0,2680.3,4.28082]
[1739209917145,3.73023,2680.8,2680.3,4.28082]
[1739209917480,6.73004,2681.0,2680.3,4.28082]
[1739209917782,3.73004,2681.0,2680.5,3.73057]
[1739209917963,3.73004,2681.0,2680.6,0.5575]
[1739209918166,3.7301,2680.9,2680.6,0.0075]
[1739209918674,3.73047,2680.7,2680.2,0.8073]
[1739209919064,3.73047,2680.7,2680.3,0.55]
[1739209919985,6.73029,2680.8,2680.3,0.55]
[1739209920357,6.73029,2680.8,2680.3,4.28088]
[1739209920970,3.73001,2681.0,2680.4,0.0075]
[1739209921164,3.73001,2681.0,2680.5,0.55]
[1739209921371,3.73001,2681.0,2680.5,4.28056]
[1739209922971,3.73001,2681.0,2680.4,0.565]
[1739209923173,3.73009,2680.9,2680.4,4.29571]
[1739209923372,3.73001,2681.0,2680.4,4.29571]
[1739209923373,3.73001,2681.0,2680.6,0.55]
[1739209923688,3.73001,2681.0,2680.7,0.08724615]
[1739209924094,6.72974,2681.2,2680.8,0.55]
[1739209924296,3.72941,2681.4,2680.9,3.81700154]
[1739209924597,0.7719,2681.7,2680.9,3.81700154]
[1739209924598,3.72967,2681.2,2681.0,0.55]
[1739209924889,3.72967,2681.2,2681.1,0.08674478]
[1739209925088,3.72967,2681.2,2681.1,0.63674478]
[1739209925289,3.72955,2681.3,2681.1,0.63674478]
[1739209926592,0.7719,2681.7,2681.1,0.08674478]
[1739209926593,3.72967,2681.2,2681.1,0.08674478]
[1739209926986,3.72967,2681.2,2680.7,0.7958]
[1739209926987,3.72967,2681.2,2680.8,0.5575]
[1739209927190,3.72967,2681.2,2681.1,0.08674478]
[1739209927363,3.72967,2681.2,2680.8,0.5575]
[1739209927563,3.72941,2681.4,2680.8,0.5575]
[1739209927564,3.72941,2681.4,2681.1,0.08674478]
[1739209927758,3.72941,2681.4,2681.0,0.55]
[1739209927972,3.7296,2681.3,2681.2,0.08662251]
[1739209928200,3.7296,2681.3,2681.1,0.08674478]
[1739209928416,3.7719,2681.7,2680.7,0.7958]
[1739209928696,3.72979,2681.2,2680.7,0.7958]
[1739209928994,3.72979,2681.2,2680.8,0.55]
[1739209928995,3.72972,2681.2,2680.8,0.55]
[1739209930194,3.72981,2681.1,2680.8,0.55]
[1739209930566,3.72981,2681.1,2680.7,0.55]
[1739209930916,3.73031,2680.8,2680.3,3.73085]
[1739209931128,3.73083,2680.4,2680.2,0.7958]
[1739209931415,3.73116,2680.2,2679.6,4.52766]
[1739209931563,3.73133,2680.1,2679.7,0.5575]
[1739209931763,3.73144,2680.0,2679.6,0.7958]
[1739209931995,3.73153,2679.9,2679.7,0.55]
[1739209932215,3.73144,2680.0,2679.6,0.7958]
[1739209932509,6.73078,2680.4,2679.6,0.7958]
[1739209932719,3.0,2680.2,2679.4,0.7958]
[1739209932867,3.73158,2679.9,2679.4,4.52795]
[1739209933072,3.0,2680.0,2679.5,3.73199]
[1739209933578,3.0,2680.0,2679.6,0.55]
[1739209933980,4.5029,2680.3,2679.6,0.5873159]
[1739209934178,3.7308,2680.4,2680.0,0.7814]
[1739209934969,3.0,2680.5,2680.0,0.7814]
[1739209935168,3.0,2680.5,2680.1,0.55]
[1739209935391,3.7304,2680.7,2680.1,4.28116]
[1739209935668,3.0,2680.6,2680.1,4.28116]
[1739209936901,3.7303,2680.8,2680.3,0.55]
[1739209937200,3.7303,2680.8,2680.2,0.03730817]
[1739209937201,0.7902,2681.3,2680.5,4.28054]
[1739209937368,7.45976,2681.1,2680.5,4.28054]
[1739209937571,3.72996,2681.0,2680.5,4.28054]
[1739209937969,3.72981,2681.1,2680.5,4.28054]
[1739209938201,7.4597,2681.1,2680.5,4.28054]
[1739209938400,3.0,2680.7,2680.6,8.17e-06]
[1739209938598,0.7902,2680.5,2679.1,0.7606]
[1739209938799,3.73259,2679.2,2678.8,0.7606]
[1739209939002,6.73231,2679.3,2679.2,0.08287839]
[1739209939211,6.73231,2679.3,2678.2,3.60436358]
[1739209939212,3.73286,2679.0,2678.6,0.55]
[1739209939578,3.7324,2679.3,2678.7,0.09092989]
[1739209939984,3.7324,2679.3,2678.8,0.55]
[1739209940206,3.7324,2679.3,2678.7,0.09092989]
[1739209940416,3.7326,2679.1,2678.9,0.08319465]
[1739209940606,3.7326,2679.1,2678.8,0.08331714]
[1739209940801,3.7324,2679.3,2679.0,0.08307217]
[1739209940988,3.73252,2679.2,2678.9,0.08319465]
[1739209941193,3.73252,2679.2,2679.1,0.0829497]
[1739209941394,3.73252,2679.2,2679.0,0.08307217]
[1739209941609,3.7324,2679.3,2679.0,0.08307217]
[1739209941804,3.73247,2679.2,2678.7,0.0075]
[1739209942013,3.73247,2679.2,2678.2,0.75949177]
[1739209942014,0.7902,2679.2,2678.2,0.75949177]
[1739209942197,0.1,2680.1,2676.8,0.7606]
[1739209942198,3.73491,2677.5,2676.8,0.7606]
[1739209942369,3.73399,2678.1,2676.8,0.7606]
[1739209942574,3.73399,2678.1,2676.3,0.7606]
[1739209942575,3.73566,2676.9,2676.3,0.7606]
[1739209943202,3.7355,2677.1,2676.3,4.49708]
[1739209943411,3.73524,2677.2,2676.3,0.7606]
[1739209943608,3.73524,2677.2,2676.4,0.565]
[1739209943609,3.73572,2676.9,2676.4,0.565]
[1739209944113,3.73572,2676.9,2676.4,0.015]
[1739209944523,3.73622,2676.5,2676.3,0.7606]
[1739209944724,3.73626,2676.5,2676.3,0.7606]
[1739209944881,3.73636,2676.4,2676.3,0.7606]
[1739209945085,3.0,2677.4,2676.3,0.7606]
[1739209945086,3.73622,2676.5,2676.3,0.7606]
[1739209945286,4.30307325,2677.5,2676.3,0.7606]
[1739209945516,4.30307325,2677.5,2676.4,3.73632]
[1739209945517,3.73524,2677.2,2676.4,3.73632]
[1739209945813,3.73524,2677.2,2676.5,0.55]
[1739209946016,3.73524,2677.2,2676.5,0.62501365]
[1739209946206,6.73518,2677.3,2676.5,0.62501365]
[1739209946403,3.73539,2677.1,2676.5,0.62501365]
[1739209946808,3.73518,2677.3,2676.5,0.62501365]
[1739209947113,3.73524,2677.2,2676.5,0.62501365]
[1739209947797,3.73542,2677.1,2676.5,0.62501365]
[1739209948581,3.73524,2677.2,2676.5,0.62501365]
[1739209948788,0.7902,2677.5,2676.8,0.0075]
[1739209948984,3.73498,2677.4,2676.7,3.74337]
[1739209949321,3.73513,2677.3,2676.9,0.55]
[1739209949721,3.73513,2677.3,2677.1,0.55]
[1739209949920,3.73498,2677.4,2677.1,0.55]
[1739209950321,3.73498,2677.4,2677.2,0.07415496]
[1739209951087,3.73472,2677.6,2677.2,0.07415496]
[1739209951519,3.7351,2677.3,2677.2,0.07415496]
[1739209951719,0.7902,2677.3,2676.0,1.29074698]
[1739209951929,0.7902,2677.3,2676.0,0.7606]
[1739209951930,3.73678,2676.1,2676.0,0.7606]
[1739209952136,3.73678,2676.1,2675.0,3.51287325]
[1739209952137,3.73678,2676.1,2675.4,0.7606]
[1739209952293,7.47489,2675.7,2675.5,0.0075]
[1739209952494,3.73742,2675.7,2675.5,0.0075]
[1739209952714,3.73707,2675.9,2675.5,0.015]
[1739209952947,3.73707,2675.9,2675.4,0.7606]
[1739209953319,3.73734,2675.7,2675.5,0.55]
[1739209953522,3.73724,2675.8,2675.5,0.07709137]
[1739209953724,3.73707,2675.9,2675.5,0.07709137]
[1739209953916,3.73707,2675.9,2675.6,0.55]
[1739209954117,3.7373,2675.8,2675.6,0.55]
[1739209954318,3.73707,2675.9,2675.7,0.07690905]
[1739209954629,3.73707,2675.9,2675.4,0.7606]
[1739209954921,3.73707,2675.9,2675.8,0.07678627]
[1739209955101,3.73675,2676.2,2675.6,0.0075]
[1739209955311,4.30307325,2676.6,2676.0,3.73683]
[1739209955550,3.73617,2676.6,2676.2,0.55]
[1739209955842,3.73617,2676.6,2676.3,0.07617256]
[1739209956195,3.73617,2676.6,2676.2,0.55]
[1739209956398,3.73617,2676.6,2676.4,0.55]
[1739209956594,3.73617,2676.6,2676.5,0.07581525]
[1739209958005,3.73637,2676.4,2676.1,0.7966]
[1739209959105,3.73661,2676.3,2675.9,0.0075]
[1739209959836,3.73637,2676.4,2676.0,0.55]
[1739209960041,3.73612,2676.6,2676.0,4.28687]
[1739209960224,7.4723,2676.6,2676.0,4.28687]
[1739209960617,3.73612,2676.6,2676.0,4.28687]
[1739209960816,7.4723,2676.6,2676.0,4.28687]
[1739209961442,3.73597,2676.7,2676.2,0.5575]
[1739209962353,3.73591,2676.8,2676.2,4.29408]
[1739209962566,3.73596,2676.7,2676.2,0.5575]
[1739209963069,3.73596,2676.7,2676.2,0.55]
[1739209963070,7.24883325,2676.7,2676.2,0.55]
[1739209963205,3.73518,2677.3,2675.3,0.7966]
[1739209963206,3.0,2676.3,2675.3,0.7966]
[1739209963415,3.73748,2675.6,2675.3,0.7966]
[1739209963617,3.73768,2675.5,2675.3,0.7966]
[1739209963817,3.73768,2675.5,2674.9,3.73832]
[1739209964034,3.73751,2675.6,2675.0,4.53478]
[1739209964258,3.73751,2675.6,2675.1,4.28814]
[1739209964438,3.73724,2675.8,2675.1,0.58737942]
[1739209964746,3.73724,2675.8,2675.3,0.55]
[1739209964928,3.73724,2675.8,2675.3,3.73789]
[1739209965154,3.73724,2675.8,2675.3,0.55]
[1739209965466,3.73724,2675.8,2675.3,4.28787]
[1739209965843,7.47455,2675.8,2675.3,0.55]
[1739209966015,7.47452,2675.8,2675.3,0.55]
[1739209966222,3.73724,2675.8,2675.3,0.55]
[1739209966721,3.73736,2675.7,2675.3,0.55]
[1739209967309,3.73724,2675.8,2675.3,0.55]
[1739209967512,3.73748,2675.6,2675.1,0.565]
[1739209967912,7.47509,2675.6,2675.1,0.565]
[1739209968115,3.73748,2675.6,2675.1,0.565]
[1739209968446,3.73748,2675.6,2675.3,0.55]
[1739209968640,3.73728,2675.8,2675.3,0.55]
[1739209968843,3.73728,2675.8,2675.4,0.07471909]
[1739209969024,4.5018,2676.0,2675.4,3.81240909]
[1739209969251,3.73707,2675.9,2675.4,0.07471909]
[1739209969895,4.5018,2676.0,2675.4,0.07471909]
[1739209970035,3.7371,2675.9,2675.4,0.07471909]
[1739209970381,4.5018,2676.0,2675.4,3.81243909]
[1739209970677,3.73714,2675.9,2675.5,0.0745963]
[1739209971041,3.73714,2675.9,2675.4,7.47542]
[1739209971295,3.73714,2675.9,2675.6,0.07447351]
[1739209971458,3.73714,2675.9,2675.5,0.0745963]
[1739209971641,3.7648,2676.0,2675.7,0.07435073]
[1739209971840,0.7651,2676.6,2676.5,3.73622]
[1739209972186,3.51287325,2677.3,2676.5,3.73622]
[1739209972187,3.73587,2676.8,2676.5,0.07336882]
[1739209972483,3.73587,2676.8,2676.3,0.55]
[1739209972644,3.73587,2676.8,2676.6,0.07316375]
[1739209972838,0.7651,2677.2,2676.5,0.55]
[1739209972839,3.73564,2677.0,2676.5,0.55]
[1739209973077,4.50044,2677.2,2676.7,0.07304107]
[1739209973276,3.0,2677.1,2676.7,0.55]
[1739209973455,0.7651,2677.5,2676.9,3.73558]
[1739209973772,3.73523,2677.3,2676.9,0.55]
[1739209973985,3.0,2677.2,2677.0,0.07267306]
[1739209974268,3.73483,2677.5,2677.0,0.55]
[1739209974473,3.51287325,2677.6,2677.1,0.0725504]
[1739209974671,3.73524,2677.2,2677.1,0.0725504]
[1739209975046,3.73594,2676.7,2676.1,0.0075]
[1739209975511,3.73569,2676.9,2676.3,0.55]
[1739209975835,3.73603,2676.7,2676.4,0.07313074]
[1739209977866,0.7651,2677.2,2677.1,3.73538]
[1739209978067,0.7651,2677.2,2676.9,3.73557]
[1739209978268,3.73499,2677.4,2676.9,3.73557]
[1739209978877,3.0,2677.3,2677.1,0.07232524]
[1739209979073,3.73478,2677.6,2677.1,0.55]
[1739209979379,3.73477,2677.6,2677.2,0.07211787]
[1739209979541,3.73491,2677.5,2677.2,0.07211787]
[1739209979742,3.73491,2677.5,2676.9,0.55]
[1739209979974,3.73477,2677.6,2677.0,3.73539]
[1739209980275,3.73484,2677.5,2677.1,0.07224052]
[1739209980491,3.73468,2677.6,2677.1,0.07224052]
[1739209980679,1.59399927,2677.7,2676.8,0.55]
[1739209980846,3.73509,2677.4,2676.8,0.55]
[1739209981046,3.73504,2677.4,2676.8,4.2858]
[1739209981467,3.73476,2677.6,2676.8,0.55]
[1739209981666,3.73476,2677.6,2676.9,3.73553]
[1739209981886,3.73492,2677.5,2676.9,3.73553]
[1739209982054,3.73492,2677.5,2677.0,3.73549]
[1739209982566,5.32856927,2677.7,2677.0,3.73549]
[1739209982768,3.73469,2677.6,2677.1,3.73536]
[1739209983171,3.73472,2677.6,2677.1,3.73536]
[1739209983373,3.73472,2677.6,2677.2,0.07205495]
[1739209986198,3.73483,2677.5,2677.2,0.07205495]
[1739209986376,3.73483,2677.5,2676.8,0.55]
[1739209986377,3.73505,2677.4,2676.8,0.55]
[1739209986692,3.73481,2677.6,2677.0,0.55]
[1739209986693,3.73476,2677.6,2677.0,0.55]
[1739209986899,5.32861927,2677.7,2677.1,3.7353]
[1739209987059,1.59399927,2677.7,2677.1,4.35734689]
[1739209987259,1.59399927,2677.7,2677.1,0.62204689]
[1739209987586,1.59399927,2677.7,2677.6,3.73468]
[1739209987781,1.59399927,2677.7,2677.6,3.80611377]
[1739209988998,1.59399927,2677.7,2677.6,4.35611377]
[1739209989298,1.59399927,2677.7,2677.6,0.62143377]
[1739209989669,1.59399927,2677.7,2677.6,4.35611377]
[1739209989869,1.59399927,2677.7,2677.6,5.13491377]
[1739209990069,3.73331,2678.6,2678.0,3.73403]
[1739209990292,3.0,2678.5,2678.0,3.73403]
[1739209990464,3.0,2678.5,2678.1,0.0707362]
[1739209990866,6.73356,2678.5,2678.1,0.0707362]
[1739209991078,6.73343,2678.5,2678.1,0.0707362]
[1739209991367,6.73343,2678.5,2678.2,0.07061364]
[1739209991568,3.73359,2678.4,2678.0,0.55]
[1739209991767,3.73359,2678.4,2678.1,0.0707362]
[1739209992189,0.8314,2678.8,2678.1,0.0707362]
[1739209992389,0.8314,2678.8,2678.3,3.73365]
[1739209992591,0.8314,2679.1,2678.4,0.62036857]
[1739209992869,3.73302,2678.8,2678.4,0.62036857]
[1739209993590,7.46614,2678.8,2678.4,0.62036857]
[1739209993786,3.73316,2678.7,2678.4,0.62036857]
[1739209994175,3.73339,2678.6,2678.4,0.07036857]
[1739209994381,4.56479,2678.6,2677.8,8.75]
[1739209994606,3.73415,2678.0,2677.9,0.07076609]
[1739209994907,3.73455,2677.7,2677.3,0.0075]
[1739209995077,3.73473,2677.6,2677.2,0.7788]
[1739209995278,3.73455,2677.7,2677.2,0.7788]
[1739209995515,3.73455,2677.7,2677.3,0.55]
[1739209995904,7.46874,2677.9,2677.3,4.2851]
[1739209996204,3.73435,2677.9,2677.4,3.73496]
[1739209996499,3.73435,2677.9,2677.4,3.73493]
[1739209997080,6.73415,2678.0,2677.5,3.73481]
[1739209997280,3.73408,2678.1,2677.3,0.565]
[1739209997485,7.46815,2678.1,2677.7,0.55]
[1739209997803,7.46818,2678.1,2677.7,0.55]
[1739209998003,3.73407,2678.1,2677.7,0.55]
[1739209998309,3.73414,2678.0,2677.7,0.55]
[1739209998490,3.73414,2678.0,2677.8,0.07100957]
[1739209998805,3.73414,2678.0,2677.7,0.55]
[1739209998969,3.73414,2678.0,2677.8,0.07100957]
[1739209999169,0.7821,2678.4,2677.9,3.73419]
[1739209999370,3.7821,2678.4,2678.0,3.80488442]
[1739209999580,3.7335,2678.5,2678.0,7.53900442]
[1739209999886,3.0,2678.5,2678.0,3.80488442]
[1739210000081,3.0,2678.6,2678.1,0.55]
[1739210000287,6.73332,2678.6,2678.1,0.55]
[1739210000528,3.73329,2678.6,2678.2,0.07041045]
[1739210001400,4.51531,2678.7,2678.2,0.07041045]
[1739210001600,3.73345,2678.5,2678.2,0.07041045]
[1739210001809,3.73323,2678.7,2678.2,3.80424045]
[1739210002004,3.73308,2678.8,2678.4,0.55]
[1739210002205,3.73317,2678.7,2678.4,0.55]
[1739210002394,3.7329,2678.9,2678.5,0.07004285]
[1739210002596,3.73301,2678.8,2678.5,0.07004285]
[1739210003396,3.73322,2678.7,2678.5,0.07004285]
[1739210004103,7.46645,2678.7,2678.5,0.07004285]
[1739210004312,3.73322,2678.7,2678.5,0.07004285]
[1739210004619,3.73295,2678.9,2678.5,0.07004285]
[1739210004822,0.7821,2679.0,2678.7,3.73314]
[1739210005021,3.73255,2679.2,2678.8,0.06967533]
[1739210005195,3.73255,2679.2,2678.7,3.73306]
[1739210005400,4.51442,2679.3,2678.8,3.80265533]
[1739210005708,3.73246,2679.2,2678.8,0.06967533]
[1739210006017,3.73269,2679.1,2678.6,3.73328]
[1739210006220,3.73259,2679.1,2678.7,0.06979783]
[1739210006390,3.73259,2679.1,2678.6,3.73328]
[1739210006589,3.73259,2679.1,2678.7,0.06979783]
[1739210007020,3.73273,2679.0,2678.5,3.73334]
[1739210007323,3.73273,2679.0,2678.6,0.06992033]
[1739210007520,0.7821,2679.3,2678.6,0.06992033]
[1739210007521,0.7821,2679.3,2678.7,0.55]
[1739210007712,3.73237,2679.3,2678.9,1.3268]